[Event "2nd Serbian League-Vojvodina 2023"]
[Site "Novi Sad"]
[Date "2023.11.06"]
[Round "7.17"]
[White "Levnajic, Pavle"]
[Black "Kecskemeti, Arpad"]
[Result "1/2-1/2"]
[ECO "B07"]
[WhiteElo "2160"]
[BlackElo "2185"]
[Annotator "RC"]
[PlyCount "77"]
[EventDate "2023.10.22"]
[EventType "team-tourn"]
[EventCountry "SRB"]
[SourceTitle "playchess.com"]
[Source "ChessBase"]
[SourceQuality "1"]
[TimeControl "40/5400+30:1800+30"]

1. d4 {[%emt 1:31:00]} Nf6 {[%emt 1:31:00]} 2. Nf3 {[%emt 0:00:30]} g6 {[%emt 0:00:30]} 3. Nbd2 {[%emt 0:00:30]} Bg7 {[%emt 0:00:30]} 4. e4 {[%emt 0:00:30]} d6 {[%emt 0:00:30]} 5. Bc4 {[%emt 0:00:30]} O-O {[%emt 0:00:30]} 6. Qe2 {[%emt 0:00:30]} Nc6 {[%emt 0:00:30]} 7. c3 {[%emt 0:00:30]} e5 {[%emt 0:00:30]} 8. d5 {[%emt 0:00:30]} Ne7 {[%emt 0:00:30]} 9. Bb3 {[%emt 0:00:30]} Nd7 {[%emt 0:00:30]} 10. c4 {[%emt 0:00:30]} f5 {[%emt 0:00:30]} 11. Bc2 {[%emt 0:00:30]} a5 {[%emt 0:00:30]} 12. b3 {[%emt 0:00:30]} Nc5 {[%emt 0:00:30]} 13. Bb2 {[%emt 0:00:30]} Bh6 {[%emt 0:00:30]} 14. h3 {[%emt 0:00:30]} f4 {[%emt 0:00:30]} 15. O-O-O {[%emt 0:00:30]} a4 {[%emt 0:00:30]} 16. b4 {[%emt 0:00:30]} a3 {[%emt 0:00:30]} 17. Bc3 {[%emt 0:00:30]} Na4 {[%emt 0:00:30]} 18. Bxa4 {[%emt 0:00:30]} Rxa4 {[%emt 0:00:30]} 19. Nb3 {[%emt 0:00:30]} Bd7 {[%emt 0:00:30]} 20. Kb1 {[%emt 0:00:30]} Bg7 {[%emt 0:00:30]} 21. Rc1 {[%emt 0:00:30]} c6 22. Rc2 cxd5 23. cxd5 Qb6 {[%emt 0:01:30]} 24. Rhc1 {[%emt 0:01:30]} Bb5 {[%emt 0:00:30]} 25. Qd1 {[%emt 0:00:30]} Qa6 {[%emt 0:00:30]} 26. Rd2 {[%emt 0:00:30]} Rc8 {[%emt 0:00:30]} 27. Ng5 {[%emt 0:00:30]} Bh6 {[%emt 0:00:30]} 28. Qg4 {[%emt 0:00:30]} Bxg5 {[%emt 0:00:30]} 29. Qxg5 {[%emt 0:00:30]} Kf7 {[%emt 0:00:30]} 30. f3 {[%emt 0:00:30]} Bd3+ {[%emt 0:00:30]} 31. Ka1 {[%emt 0:00:30]} h5 {[%emt 0:00:30]} 32. Qh4 {[%emt 0:00:30]} Qb5 {[%emt 0:00:30]} 33. Qe1 {[%emt 0:00:30]} Raa8 {[%emt 0:00:30]} 34. Qd1 {[%emt 0:00:30]} Bc4 {[%emt 0:00:30]} 35. Na5 {[%emt 0:00:30]} g5 {[%emt 0:00:30]} 36. Rdc2 {[%emt 0:00:30]} Bd3 {[%emt 0:00:30]} 37. Rd2 {[%emt 0:00:30]} Bc4 38. Rdc2 {[%emt 0:00:30]} Bd3 {[%emt 0:01:00]} 39. Rd2 {[%emt 0:00:30]} 1/2-1/2

[Event "2nd Serbian League-Vojvodina 2023"]
[Site "Novi Sad"]
[Date "2023.11.06"]
[Round "7.18"]
[White "Solymosi, Andras"]
[Black "Milanovic, Stanko"]
[Result "1-0"]
[ECO "A05"]
[WhiteElo "2130"]
[BlackElo "2115"]
[Annotator "RC"]
[PlyCount "68"]
[EventDate "2023.10.22"]
[EventType "team-tourn"]
[EventCountry "SRB"]
[SourceTitle "playchess.com"]
[Source "ChessBase"]
[SourceQuality "1"]
[TimeControl "40/5400+30:1800+30"]

1. Nf3 {[%emt 1:31:00]} Nf6 {[%emt 1:31:00]} 2. g3 {[%emt 0:00:30]} b6 {[%emt 0:00:30]} 3. Bg2 {[%emt 0:00:30]} Bb7 {[%emt 0:00:30]} 4. O-O {[%emt 0:00:30]} d6 {[%emt 0:00:30]} 5. d4 {[%emt 0:00:30]} c5 {[%emt 0:00:30]} 6. c3 {[%emt 0:00:30]} e6 {[%emt 0:00:30]} 7. a4 {[%emt 0:00:30]} Nc6 {[%emt 0:00:30]} 8. Nbd2 {[%emt 0:00:30]} Be7 {[%emt 0:00:30]} 9. Re1 {[%emt 0:00:30]} O-O 10. e4 {[%emt 0:00:30]} cxd4 {[%emt 0:01:00]} 11. Nxd4 {[%emt 0:00:30]} Nxd4 {[%emt 0:00:30]} 12. cxd4 {[%emt 0:00:30]} Qc7 {[%emt 0:00:30]} 13. Ra3 {[%emt 0:00:30]} Rac8 {[%emt 0:00:30]} 14. Rc3 {[%emt 0:00:30]} Qb8 {[%emt 0:00:30]} 15. g4 {[%emt 0:00:30]} Nd7 {[%emt 0:00:30]} 16. Nf1 {[%emt 0:00:30]} Rxc3 {[%emt 0:00:30]} 17. bxc3 {[%emt 0:00:30]} Qc7 {[%emt 0:00:30]} 18. Bd2 {[%emt 0:00:30]} Bh4 {[%emt 0:00:30]} 19. g5 {[%emt 0:00:30]} f6 {[%emt 0:00:30]} 20. Qg4 {[%emt 0:00:30]} fxg5 {[%emt 0:00:30]} 21. Qxe6+ {[%emt 0:00:30]} Kh8 {[%emt 0:00:30]} 22. Ng3 {[%emt 0:00:30]} Nf6 {[%emt 0:00:30]} 23. e5 {[%emt 0:00:30]} dxe5 {[%emt 0:00:30]} 24. Qxe5 {[%emt 0:00:30]} Qd7 {[%emt 0:00:30]} 25. Qe7 {[%emt 0:00:30]} Qxe7 {[%emt 0:00:30]} 26. Rxe7 {[%emt 0:00:30]} Bc8 {[%emt 0:00:30]} 27. Rxa7 {[%emt 0:00:30]} Bd7 {[%emt 0:00:30]} 28. a5 {[%emt 0:00:30]} bxa5 {[%emt 0:00:30]} 29. Rxa5 {[%emt 0:00:30]} h6 {[%emt 0:00:30]} 30. Ra8 {[%emt 0:00:30]} Ne8 {[%emt 0:00:30]} 31. h3 {[%emt 0:00:30]} g6 {[%emt 0:00:30]} 32. c4 {[%emt 0:00:30]} Kg7 {[%emt 0:00:30]} 33. Ra7 {[%emt 0:00:30]} Rf7 {[%emt 0:00:30]} 34. Bd5 {[%emt 0:00:30]} Be6 {[%emt 0:00:30]} 1-0

[Event "2nd Serbian League-Vojvodina 2023"]
[Site "Novi Sad"]
[Date "2023.11.06"]
[Round "7.19"]
[White "Balla, Tamas-Kristof"]
[Black "Agdelen, Huseyin Can"]
[Result "0-1"]
[ECO "E11"]
[WhiteElo "2308"]
[BlackElo "2401"]
[Annotator "RC"]
[PlyCount "102"]
[EventDate "2023.10.22"]
[EventType "team-tourn"]
[EventCountry "SRB"]
[SourceTitle "playchess.com"]
[Source "ChessBase"]
[SourceQuality "1"]
[TimeControl "40/5400+30:1800+30"]

1. d4 {[%emt 0:03:06]} Nf6 {[%emt 0:00:17]} 2. c4 {[%emt 0:00:04]} e6 {[%emt 0:00:38]} 3. Nf3 {[%emt 0:00:22]} d5 {[%emt 0:06:09]} 4. g3 {[%emt 0:01:05]} Bb4+ {[%emt 0:05:07]} 5. Bd2 {[%emt 0:00:12]} Be7 {[%emt 0:00:17]} 6. Bg2 {[%emt 0:00:09]} c6 {[%emt 0:00:38]} 7. Qc2 {[%emt 0:00:05]} O-O {[%emt 0:00:28]} 8. O-O {[%emt 0:00:06]} a5 {[%emt 0:00:12]} 9. Bf4 {[%emt 0:01:36]} Nh5 {[%emt 0:09:04]} 10. Bd2 {[%emt 0:02:23]} b6 {[%emt 0:06:57]} 11. b3 {[%emt 0:08:50]} Nd7 {[%emt 0:07:33]} 12. e4 {[%emt 0:04:42]} Nhf6 {[%emt 0:03:47]} 13. Nc3 {[%emt 0:06:43]} Ba6 {[%emt 0:04:50]} 14. Rfe1 {[%emt 0:27:21]} dxc4 15. bxc4 {[%emt 0:00:57]} e5 {[%emt 0:17:03]} 16. Na4 {[%emt 0:07:22]} b5 {[%emt 0:04:04]} 17. Nb2 {[%emt 0:01:29]} Rc8 {[%emt 0:19:45]} 18. Rad1 {[%emt 0:05:43]} Qc7 {[%emt 0:03:54]} 19. dxe5 {[%emt 0:03:36]} Ng4 {[%emt 0:01:56]} 20. Bf4 {[%emt 0:01:07]} Ndxe5 {[%emt 0:01:37]} 21. cxb5 {[%emt 0:12:07]} Bxb5 {[%emt 0:00:20]} 22. Nd4 {[%emt 0:00:15]} Bb4 {[%emt 0:02:42]} 23. Nxb5 {[%emt 0:04:44]} cxb5 {[%emt 0:00:19]} 24. Qxc7 {[%emt 0:00:15]} Rxc7 {[%emt 0:00:03]} 25. Re2 {[%emt 0:00:10]} Re7 {[%emt 0:01:54]} 26. Rd5 {[%emt 0:00:37]} Ng6 {[%emt 0:00:42]} 27. Rxb5 {[%emt 0:00:58]} Nxf4 {[%emt 0:00:16]} 28. gxf4 {[%emt 0:00:02]} Rd8 {[%emt 0:00:34]} 29. Bf3 {[%emt 0:01:02]} Nf6 {[%emt 0:00:26]} 30. e5 {[%emt 0:00:43]} Ne8 {[%emt 0:00:12]} 31. Nc4 {[%emt 0:00:49]} Nc7 {[%emt 0:00:34]} 32. Rb7 {[%emt 0:01:06]} Ne6 {[%emt 0:00:26]} 33. Rxe7 {[%emt 0:00:29]} Rd1+ {[%emt 0:00:29]} 34. Kg2 {[%emt 0:00:16]} Nxf4+ {[%emt 0:00:05]} 35. Kg3 {[%emt 0:00:30]} Nxe2+ {[%emt 0:00:02]} 36. Bxe2 {[%emt 0:00:17]} Rg1+ {[%emt 0:00:03]} 37. Kf3 {[%emt 0:00:34]} Bxe7 {[%emt 0:00:05]} 38. Nxa5 {[%emt 0:00:06]} Rc1 {[%emt 0:00:52]} 39. Bd3 {[%emt 0:02:38]} Rc3 {[%emt 0:01:49]} 40. Ke4 {[%emt 0:00:02]} Bc5 {[%emt 0:01:16]} 41. f4 {[%emt 0:30:41]} Bg1 {[%emt 0:30:17]} 42. h4 {[%emt 0:02:32]} Ra3 {[%emt 0:00:15]} 43. Nb7 {[%emt 0:00:50]} Ra4+ {[%emt 0:01:16]} 44. Kf3 {[%emt 0:03:49]} Bh2 {[%emt 0:00:36]} 45. Nd6 {[%emt 0:00:00]} Rxf4+ {[%emt 0:00:11]} 46. Kg2 {[%emt 0:00:00]} Rxh4 {[%emt 0:00:44]} 47. Nf5 {[%emt 0:00:35]} Rh5 {[%emt 0:00:12]} 48. a4 {[%emt 0:00:01]} Bxe5 {[%emt 0:00:15]} 49. a5 {[%emt 0:00:12]} Rh2+ {[%emt 0:00:16]} 50. Kf3 {[%emt 0:00:04]} Ra2 {[%emt 0:00:04]} 51. a6 {[%emt 0:00:03]} Kf8 {[%emt 0:00:51]} 0-1

[Event "2nd Serbian League-Vojvodina 2023"]
[Site "Novi Sad"]
[Date "2023.11.06"]
[Round "7.20"]
[White "Lalic, Bogdan"]
[Black "Kopasz, Robert"]
[Result "1/2-1/2"]
[ECO "E69"]
[WhiteElo "2345"]
[BlackElo "2241"]
[Annotator "RC"]
[PlyCount "24"]
[EventDate "2023.10.22"]
[EventType "team-tourn"]
[EventCountry "SRB"]
[SourceTitle "playchess.com"]
[Source "ChessBase"]
[SourceQuality "1"]
[TimeControl "40/5400+30:1800+30"]

1. d4 {[%emt 1:31:00]} Nf6 {[%emt 1:31:00]} 2. c4 {[%emt 0:00:30]} g6 {[%emt 0:00:30]} 3. Nc3 {[%emt 0:00:30]} Bg7 {[%emt 0:00:30]} 4. Nf3 {[%emt 0:00:30]} d6 {[%emt 0:00:30]} 5. g3 {[%emt 0:00:30]} O-O {[%emt 0:00:30]} 6. Bg2 {[%emt 0:00:30]} Nbd7 {[%emt 0:00:30]} 7. O-O {[%emt 0:00:30]} e5 {[%emt 0:00:30]} 8. e4 {[%emt 0:00:30]} c6 {[%emt 0:00:30]} 9. h3 {[%emt 0:00:30]} Re8 {[%emt 0:00:30]} 10. Re1 {[%emt 0:00:30]} a6 {[%emt 0:00:30]} 11. d5 {[%emt 0:00:30]} cxd5 {[%emt 0:00:30]} 12. cxd5 {[%emt 0:00:30]} b5 {[%emt 0:00:30]} 1/2-1/2

[Event "2nd Serbian League-Vojvodina 2023"]
[Site "Novi Sad"]
[Date "2023.11.06"]
[Round "7.21"]
[White "Nagy, Attila N"]
[Black "Grujic, Zoran"]
[Result "1/2-1/2"]
[ECO "D43"]
[WhiteElo "2164"]
[BlackElo "2315"]
[Annotator "RC"]
[PlyCount "59"]
[EventDate "2023.10.22"]
[EventType "team-tourn"]
[EventCountry "SRB"]
[SourceTitle "playchess.com"]
[Source "ChessBase"]
[SourceQuality "1"]
[TimeControl "40/5400+30:1800+30"]

1. Nf3 {[%emt 1:31:00]} Nf6 {[%emt 0:00:20]} 2. c4 {[%emt 0:00:00]} c6 {[%emt 0:00:46]} 3. d4 {[%emt 0:00:00]} d5 {[%emt 0:00:14]} 4. Nc3 {[%emt 0:00:00]} e6 {[%emt 0:00:18]} 5. Bg5 {[%emt 0:00:00]} h6 {[%emt 0:01:53]} 6. Bxf6 {[%emt 0:00:00]} Qxf6 {[%emt 0:00:07]} 7. e3 {[%emt 0:00:00]} Nd7 {[%emt 0:00:19]} 8. Rc1 {[%emt 0:00:00]} g6 {[%emt 0:02:29]} 9. Be2 {[%emt 0:00:00]} Bg7 {[%emt 0:00:23]} 10. O-O {[%emt 0:00:00]} O-O {[%emt 1:28:41]} 11. Qd2 {[%emt 0:05:00]} Qe7 {[%emt 0:00:30]} 12. Rfd1 {[%emt 0:00:30]} Rd8 {[%emt 0:00:30]} 13. b3 {[%emt 0:00:30]} b6 {[%emt 0:00:30]} 14. Bd3 {[%emt 0:00:00]} Bb7 {[%emt 0:00:30]} 15. Qe2 {[%emt 0:01:00]} Rab8 {[%emt 0:00:30]} 16. e4 {[%emt 0:00:30]} dxe4 {[%emt 0:00:30]} 17. Bxe4 {[%emt 0:00:30]} Re8 {[%emt 0:00:30]} 18. Bb1 {[%emt 0:00:00]} Rbd8 {[%emt 0:00:00]} 19. Re1 {[%emt 0:01:00]} Qb4 {[%emt 0:01:00]} 20. Qe3 {[%emt 0:00:30]} c5 {[%emt 0:00:30]} 21. dxc5 {[%emt 0:00:30]} Qxc5 {[%emt 0:00:30]} 22. Be4 {[%emt 0:00:30]} Bxe4 {[%emt 0:00:30]} 23. Nxe4 {[%emt 0:00:00]} Qa3 24. Rc2 {[%emt 0:01:00]} Nc5 {[%emt 0:01:00]} 25. Nxc5 {[%emt 0:00:00]} bxc5 {[%emt 0:00:00]} 26. h3 {[%emt 0:01:00]} Rd6 {[%emt 0:00:00]} 27. Ne5 {[%emt 0:00:30]} Red8 {[%emt 0:00:00]} 28. Qf4 {[%emt 0:00:30]} Bxe5 {[%emt 0:00:00]} 29. Qxe5 {[%emt 0:00:30]} Qb4 {[%emt 0:02:30]} 30. Re3 {[%emt 0:00:30]} 1/2-1/2

[Event "2nd Serbian League-Vojvodina 2023"]
[Site "Novi Sad"]
[Date "2023.11.06"]
[Round "7.22"]
[White "Dragojlovic, Andjelko"]
[Black "Gusev, Mikhail"]
[Result "1-0"]
[ECO "C00"]
[WhiteElo "2108"]
[BlackElo "2012"]
[Annotator "RC"]
[PlyCount "88"]
[EventDate "2023.10.22"]
[EventType "team-tourn"]
[EventCountry "SRB"]
[SourceTitle "playchess.com"]
[Source "ChessBase"]
[SourceQuality "1"]
[TimeControl "40/5400+30:1800+30"]

1. e4 {[%emt 1:31:00]} e6 {[%emt 1:31:00]} 2. d3 {[%emt 0:00:30]} d5 {[%emt 0:00:30]} 3. Nd2 {[%emt 0:00:30]} c5 {[%emt 0:00:30]} 4. g3 {[%emt 0:00:30]} Nc6 {[%emt 0:00:30]} 5. Bg2 {[%emt 0:00:30]} Nf6 {[%emt 0:00:30]} 6. Nh3 {[%emt 0:00:30]} Be7 {[%emt 0:00:30]} 7. O-O {[%emt 0:00:30]} O-O {[%emt 0:00:30]} 8. f4 {[%emt 0:00:30]} b6 {[%emt 0:00:30]} 9. e5 {[%emt 0:00:30]} Ne8 {[%emt 0:00:30]} 10. Nf2 {[%emt 0:00:30]} f6 {[%emt 0:00:30]} 11. exf6 {[%emt 0:00:30]} Bxf6 {[%emt 0:00:30]} 12. Ng4 {[%emt 0:00:30]} Bd4+ {[%emt 0:00:30]} 13. Kh1 {[%emt 0:00:30]} h5 {[%emt 0:00:30]} 14. c3 {[%emt 0:00:30]} hxg4 {[%emt 0:00:30]} 15. cxd4 {[%emt 0:00:30]} Nxd4 {[%emt 0:00:30]} 16. Nb3 Nxb3 17. axb3 Nf6 18. d4 Bb7 {[%emt 0:01:30]} 19. Be3 {[%emt 0:02:00]} Qe7 {[%emt 0:00:30]} 20. Re1 {[%emt 0:00:30]} Rfc8 {[%emt 0:00:30]} 21. Bg1 {[%emt 0:00:30]} Qd7 {[%emt 0:00:30]} 22. Re5 {[%emt 0:00:30]} Kf7 {[%emt 0:00:30]} 23. Qe2 {[%emt 0:00:30]} Rc6 {[%emt 0:00:30]} 24. Re1 {[%emt 0:00:30]} Re8 {[%emt 0:00:30]} 25. dxc5 {[%emt 0:00:30]} bxc5 {[%emt 0:00:30]} 26. b4 {[%emt 0:00:30]} cxb4 {[%emt 0:00:30]} 27. Bd4 {[%emt 0:00:30]} Rc4 {[%emt 0:00:30]} 28. Qd3 {[%emt 0:00:30]} Rh8 {[%emt 0:00:30]} 29. Rg5 {[%emt 0:00:30]} Rh6 30. Qe3 a5 {[%emt 0:01:00]} 31. Rf1 {[%emt 0:01:00]} Ba6 {[%emt 0:00:30]} 32. Re1 {[%emt 0:00:30]} Rg6 {[%emt 0:00:30]} 33. Qe5 {[%emt 0:00:30]} Rh6 {[%emt 0:00:30]} 34. Qe3 {[%emt 0:00:30]} a4 {[%emt 0:00:30]} 35. Bxf6 {[%emt 0:00:30]} gxf6 {[%emt 0:00:30]} 36. f5 {[%emt 0:00:30]} e5 {[%emt 0:00:30]} 37. Rxg4 {[%emt 0:00:30]} Rxh2+ {[%emt 0:00:30]} 38. Kxh2 {[%emt 0:00:30]} Rxg4 {[%emt 0:00:30]} 39. Qf3 {[%emt 0:00:30]} Rd4 {[%emt 0:00:30]} 40. Qh5+ {[%emt 0:00:30]} Kg8 {[%emt 0:00:30]} 41. Qg6+ {[%emt 0:30:30]} Qg7 {[%emt 0:30:30]} 42. Qe8+ {[%emt 0:00:30]} Kh7 {[%emt 0:00:30]} 43. Bf3 {[%emt 0:00:30]} Rd3 {[%emt 0:00:30]} 44. Rh1 {[%emt 0:00:30]} Qh6+ {[%emt 0:00:30]} 1-0

[Event "2nd Serbian League-Vojvodina 2023"]
[Site "Novi Sad"]
[Date "2023.11.06"]
[Round "7.23"]
[White "Levitan, Judah Nathan"]
[Black "Ilincic, Aleksa"]
[Result "0-1"]
[ECO "B13"]
[WhiteElo "1937"]
[BlackElo "2235"]
[Annotator "RC"]
[PlyCount "120"]
[EventDate "2023.10.22"]
[EventType "team-tourn"]
[EventCountry "SRB"]
[SourceTitle "playchess.com"]
[Source "ChessBase"]
[SourceQuality "1"]
[TimeControl "40/5400+30:1800+30"]

1. e4 {[%emt 1:31:00]} c6 {[%emt 1:31:00]} 2. d4 {[%emt 0:00:30]} d5 {[%emt 0:00:30]} 3. exd5 {[%emt 0:00:30]} cxd5 {[%emt 0:00:30]} 4. Bd3 {[%emt 0:00:30]} Nf6 {[%emt 0:00:30]} 5. c3 {[%emt 0:00:30]} Bg4 {[%emt 0:00:30]} 6. Qb3 {[%emt 0:00:30]} Qc7 {[%emt 0:00:30]} 7. Ne2 {[%emt 0:00:30]} Nc6 {[%emt 0:00:30]} 8. Bf4 {[%emt 0:00:30]} Qd7 {[%emt 0:00:30]} 9. Nd2 {[%emt 0:00:30]} e6 {[%emt 0:00:30]} 10. Ng3 {[%emt 0:00:30]} Nh5 {[%emt 0:00:30]} 11. Nxh5 {[%emt 0:00:30]} Bxh5 {[%emt 0:00:30]} 12. O-O {[%emt 0:00:30]} Bd6 {[%emt 0:00:30]} 13. Bxd6 {[%emt 0:00:30]} Qxd6 {[%emt 0:00:30]} 14. Rae1 {[%emt 0:00:30]} Bg6 {[%emt 0:00:30]} 15. Qc2 b5 {[%emt 0:00:30]} 16. Nf3 {[%emt 0:01:00]} O-O {[%emt 0:00:30]} 17. Bxg6 {[%emt 0:00:30]} hxg6 {[%emt 0:00:30]} 18. Qd3 {[%emt 0:00:30]} b4 {[%emt 0:00:30]} 19. Qe3 {[%emt 0:00:30]} Ne7 {[%emt 0:00:30]} 20. g4 {[%emt 0:00:30]} bxc3 {[%emt 0:00:30]} 21. bxc3 {[%emt 0:00:30]} Rfc8 {[%emt 0:00:30]} 22. Ng5 {[%emt 0:00:30]} Rc7 {[%emt 0:00:30]} 23. f4 Qa3 {[%emt 0:00:30]} 24. Qh3 {[%emt 0:01:00]} Qxc3 {[%emt 0:00:30]} 25. Qh7+ {[%emt 0:00:30]} Kf8 {[%emt 0:00:30]} 26. Qh8+ {[%emt 0:00:30]} Ng8 {[%emt 0:00:30]} 27. Nh7+ {[%emt 0:00:30]} Ke7 {[%emt 0:00:30]} 28. Qxg7 {[%emt 0:00:30]} Rc4 {[%emt 0:00:30]} 29. Rxe6+ {[%emt 0:00:30]} Kxe6 {[%emt 0:00:30]} 30. Qe5+ {[%emt 0:00:30]} Kd7 {[%emt 0:00:30]} 31. Qxd5+ {[%emt 0:00:30]} Ke7 {[%emt 0:00:30]} 32. Qxa8 {[%emt 0:00:30]} Qxd4+ {[%emt 0:00:30]} 33. Kh1 {[%emt 0:00:30]} Qe4+ {[%emt 0:00:30]} 34. Qxe4+ {[%emt 0:00:30]} Rxe4 {[%emt 0:00:30]} 35. Ng5 {[%emt 0:00:30]} Ra4 {[%emt 0:00:30]} 36. Re1+ {[%emt 0:00:30]} Kf8 {[%emt 0:00:30]} 37. Rb1 {[%emt 0:00:30]} Rxf4 {[%emt 0:00:30]} 38. Rb8+ {[%emt 0:00:30]} Kg7 {[%emt 0:00:30]} 39. h3 {[%emt 0:00:30]} Ra4 {[%emt 0:00:30]} 40. Rb7 {[%emt 0:00:30]} Nh6 {[%emt 0:00:30]} 41. Ne6+ {[%emt 0:30:30]} Kf6 {[%emt 0:30:30]} 42. g5+ {[%emt 0:00:30]} Kxe6 {[%emt 0:00:30]} 43. gxh6 {[%emt 0:00:30]} Ra3 {[%emt 0:00:30]} 44. Kg2 {[%emt 0:00:30]} Rxa2+ {[%emt 0:00:30]} 45. Kg3 {[%emt 0:00:30]} Ra3+ {[%emt 0:00:30]} 46. Kg4 {[%emt 0:00:30]} f5+ {[%emt 0:00:30]} 47. Kg5 {[%emt 0:00:30]} Rg3+ {[%emt 0:00:30]} 48. Kh4 {[%emt 0:00:30]} f4 {[%emt 0:00:30]} 49. Rg7 {[%emt 0:00:30]} Kf6 {[%emt 0:00:30]} 50. Rxa7 {[%emt 0:00:30]} g5+ {[%emt 0:00:30]} 51. Kh5 {[%emt 0:00:30]} Rxh3+ {[%emt 0:00:30]} 52. Kg4 {[%emt 0:00:30]} Rh4+ {[%emt 0:00:30]} 53. Kf3 {[%emt 0:00:30]} Rxh6 {[%emt 0:00:30]} 54. Ra6+ {[%emt 0:00:30]} Kg7 {[%emt 0:00:30]} 55. Ra5 {[%emt 0:00:30]} Kg6 {[%emt 0:00:30]} 56. Ra8 {[%emt 0:00:30]} Rh3+ {[%emt 0:00:30]} 57. Kf2 {[%emt 0:00:30]} Rb3 {[%emt 0:00:30]} 58. Rh8 {[%emt 0:00:30]} Kf5 {[%emt 0:00:30]} 59. Rh1 {[%emt 0:00:30]} Rb2+ {[%emt 0:00:30]} 60. Ke1 {[%emt 0:00:30]} Rb3 {[%emt 0:00:30]} 0-1

[Event "2nd Serbian League-Vojvodina 2023"]
[Site "Novi Sad"]
[Date "2023.11.06"]
[Round "7.24"]
[White "Stikovic, Dobrica"]
[Black "Vranic, Ljubomir"]
[Result "1-0"]
[ECO "A53"]
[WhiteElo "2162"]
[BlackElo "2090"]
[Annotator "RC"]
[PlyCount "68"]
[EventDate "2023.10.22"]
[EventType "team-tourn"]
[EventCountry "SRB"]
[SourceTitle "playchess.com"]
[Source "ChessBase"]
[SourceQuality "1"]
[TimeControl "40/5400+30:1800+30"]

1. Nf3 {[%emt 0:00:04]} Nf6 {[%emt 0:16:19]} 2. c4 d6 {[%emt 0:03:53]} 3. Nc3 Bg4 {[%emt 1:11:48]} 4. d4 {[%emt 0:04:52]} Nbd7 5. e4 {[%emt 0:03:45]} e5 6. Be2 {[%emt 1:24:49]} c6 {[%emt 0:00:00]} 7. O-O Be7 {[%emt 0:02:00]} 8. d5 {[%emt 0:01:00]} Bxf3 {[%emt 0:00:00]} 9. Bxf3 {[%emt 0:00:00]} c5 10. Be3 {[%emt 0:01:00]} O-O {[%emt 0:01:30]} 11. g3 {[%emt 0:00:00]} Ne8 12. Bg2 {[%emt 0:01:00]} Nc7 13. Bh3 Re8 14. a4 {[%emt 0:00:00]} Nf8 15. Qe2 {[%emt 0:00:00]} Bg5 {[%emt 0:00:00]} 16. Kh1 {[%emt 0:00:00]} Bxe3 {[%emt 0:00:00]} 17. Qxe3 {[%emt 0:00:00]} Qe7 {[%emt 0:00:00]} 18. Rae1 {[%emt 0:00:00]} Rab8 {[%emt 0:00:00]} 19. Qd2 {[%emt 0:00:00]} a6 20. Ra1 {[%emt 0:00:00]} Ra8 21. a5 {[%emt 0:04:30]} Reb8 {[%emt 0:05:30]} 22. Na4 {[%emt 0:00:30]} b5 {[%emt 0:00:00]} 23. axb6 {[%emt 0:00:00]} Ne8 {[%emt 0:00:00]} 24. b4 {[%emt 0:00:00]} Nf6 25. f3 {[%emt 0:00:00]} N8d7 26. bxc5 {[%emt 0:02:00]} Nxc5 {[%emt 0:02:30]} 27. Nxc5 {[%emt 0:00:00]} dxc5 {[%emt 0:00:30]} 28. Rfb1 {[%emt 0:00:00]} Qd6 {[%emt 0:00:00]} 29. Qa5 g6 {[%emt 0:01:00]} 30. Rb3 {[%emt 0:00:00]} Kg7 31. b7 {[%emt 0:00:00]} Ra7 32. Bc8 {[%emt 0:00:00]} Ne8 33. Rb6 {[%emt 0:03:30]} Qc7 {[%emt 0:02:00]} 34. Rc6 {[%emt 0:00:00]} Qd8 {[%emt 0:00:30]} 1-0

[Event "2nd Serbian League-Vojvodina 2023"]
[Site "Novi Sad"]
[Date "2023.11.07"]
[Round "8.1"]
[White "Farkas, Sandor I"]
[Black "Balla, Tamas-Kristof"]
[Result "0-1"]
[ECO "A46"]
[WhiteElo "2112"]
[BlackElo "2308"]
[Annotator "RC"]
[PlyCount "76"]
[EventDate "2023.10.22"]
[EventType "team-tourn"]
[EventCountry "SRB"]
[SourceTitle "playchess.com"]
[Source "ChessBase"]
[SourceQuality "1"]
[TimeControl "40/5400+30:1800+30"]

1. d4 {[%emt 0:00:46]} Nf6 {[%emt 0:00:30]} 2. Nf3 {[%emt 0:00:09]} e6 {[%emt 0:00:49]} 3. Bf4 {[%emt 0:00:34]} Be7 {[%emt 0:00:06]} 4. e3 {[%emt 0:04:47]} Nh5 {[%emt 0:00:11]} 5. Bd3 {[%emt 0:01:43]} d6 {[%emt 0:01:18]} 6. g4 {[%emt 0:06:35]} Nxf4 {[%emt 0:01:09]} 7. exf4 {[%emt 0:00:01]} c5 {[%emt 0:02:07]} 8. Nc3 {[%emt 0:05:32]} cxd4 {[%emt 0:01:36]} 9. Nxd4 {[%emt 0:01:03]} Nc6 {[%emt 0:00:51]} 10. Nb3 {[%emt 0:08:14]} a6 {[%emt 0:00:50]} 11. Qd2 {[%emt 0:06:13]} b5 {[%emt 0:04:03]} 12. h4 {[%emt 0:09:18]} Bb7 {[%emt 0:04:02]} 13. Rh3 {[%emt 0:00:58]} Qb6 {[%emt 0:06:34]} 14. h5 {[%emt 0:11:31]} O-O-O {[%emt 0:03:00]} 15. O-O-O {[%emt 0:03:28]} d5 {[%emt 0:12:33]} 16. Bf1 {[%emt 0:07:55]} Bb4 {[%emt 0:02:23]} 17. a3 {[%emt 0:00:33]} Bd6 {[%emt 0:00:38]} 18. Kb1 {[%emt 0:09:42]} Kb8 {[%emt 0:01:25]} 19. f5 {[%emt 0:01:19]} Ne5 {[%emt 0:05:52]} 20. fxe6 {[%emt 0:00:29]} fxe6 {[%emt 0:00:20]} 21. Nd4 {[%emt 0:03:02]} Rhe8 {[%emt 0:03:10]} 22. g5 {[%emt 0:06:15]} Nc4 {[%emt 0:02:05]} 23. Bxc4 {[%emt 0:01:27]} dxc4 {[%emt 0:01:02]} 24. Qe1 {[%emt 0:04:24]} Bc5 {[%emt 0:05:44]} 25. Nf3 {[%emt 0:02:35]} Bxf2 {[%emt 0:01:07]} 26. Rxd8+ {[%emt 0:01:20]} Rxd8 {[%emt 0:00:11]} 27. Qe5+ {[%emt 0:00:15]} Qc7 {[%emt 0:00:09]} 28. Qe2 {[%emt 0:01:03]} Bc5 {[%emt 0:02:02]} 29. Ne5 {[%emt 0:00:05]} Bd4 {[%emt 0:00:41]} 30. Ng4 {[%emt 0:00:13]} Qf4 {[%emt 0:01:22]} 31. h6 {[%emt 0:02:41]} Qxg5 {[%emt 0:03:57]} 32. hxg7 {[%emt 0:00:16]} Qxg7 {[%emt 0:00:49]} 33. Qh2+ {[%emt 0:00:39]} Ka8 {[%emt 0:00:12]} 34. Rxh7 {[%emt 0:00:36]} Qxg4 {[%emt 0:00:20]} 35. Qc7 {[%emt 0:00:59]} Rb8 {[%emt 0:00:05]} 36. a4 {[%emt 0:00:46]} Bxc3 {[%emt 0:03:15]} 37. bxc3 {[%emt 0:00:38]} bxa4 {[%emt 0:00:08]} 38. Qa5 {[%emt 0:00:23]} Qd1+ {[%emt 0:32:54]} 0-1